bitfinex/quotes_SOLUSD_20250102
["timestamp","ask_amount","ask_price","bid_price","bid_amount"]
[1735830144111,19.88270402,208.35,208.32,5.0]
[1735830145378,19.88270402,208.39,208.36,5.0]
[1735830145697,19.88270402,208.41,208.37,10.0]
[1735830145886,19.88270402,208.41,208.37,5.0]
[1735830146199,19.88270402,208.38,208.33,5.0]
[1735830146379,19.88270402,208.39,208.35,5.0]
[1735830146697,19.88270402,208.36,208.32,5.0]
[1735830146880,19.88270402,208.33,208.29,11.5544]
[1735830147082,19.88270402,208.3,208.29,1.5544]
[1735830147284,19.88270402,208.3,208.26,5.0]
[1735830147596,19.88270402,208.3,208.25,5.0]
[1735830147597,19.88270402,208.28,208.25,5.0]
[1735830147797,19.88270402,208.26,208.23,6.5082]
[1735830147995,19.88270402,208.25,208.21,5.0]
[1735830148197,19.88270402,208.24,208.21,5.0]
[1735830148494,19.88270402,208.23,208.21,5.0]
[1735830149014,12.0034,208.28,208.18,1.5082]
[1735830149015,19.88270402,208.22,208.18,1.5082]
[1735830149208,19.88270402,208.22,208.19,5.0]
[1735830149880,19.88270402,208.26,208.21,10.0]
[1735830150083,19.88270402,208.26,208.23,5.0]
[1735830150280,19.88270402,208.24,208.21,5.0]
[1735830150489,19.88270402,208.24,208.22,5.0]
[1735830150696,19.88270402,208.25,208.22,5.0]
[1735830150895,12.0012,208.32,208.18,1.5082]
[1735830150896,19.88270402,208.28,208.25,5.0]
[1735830151184,19.88270402,208.28,208.24,5.0]
[1735830151577,6.2815,208.42,208.27,5.0]
[1735830151578,19.88270402,208.3,208.27,5.0]
[1735830151779,19.88270402,208.32,208.29,5.0]
[1735830152196,19.88270402,208.32,208.28,10.0]
[1735830153201,11.9988,208.36,208.27,6.0944]
[1735830153202,19.88270402,208.34,208.32,5.0]
[1735830153582,19.88270402,208.34,208.29,5.0]
[1735830153777,19.88270402,208.31,208.29,5.0]
[1735830154082,19.88270402,208.31,208.27,16.0944]
[1735830154314,19.88270402,208.29,208.27,5.0]
[1735830154518,19.88270402,208.29,208.25,10.0]
[1735830154818,19.88270402,208.27,208.25,5.0]
[1735830155914,19.88270402,208.27,208.26,5.0]
[1735830156117,39.88270402,208.29,208.26,5.0]
[1735830156304,19.88270402,208.31,208.28,5.0]
[1735830156817,19.88270402,208.29,208.25,5.0]
[1735830157000,19.88270402,208.27,208.24,5.0]
[1735830157308,20.0,208.22,208.18,6.5082]
[1735830157482,19.88270402,208.2,208.18,6.5082]
[1735830157923,19.88270402,208.2,208.11,18.1576]
[1735830157924,20.0,208.16,208.11,18.1576]
[1735830158112,19.88270402,208.12,208.11,1.6402]
[1735830159100,19.88270402,208.12,208.07,5.0]
[1735830159308,19.88270402,208.08,208.05,6.5887]
[1735830159510,12.0107,208.15,208.05,6.5887]
[1735830159511,19.88270402,208.06,208.05,6.0887]
[1735830159710,19.88270402,208.2,208.05,6.0887]
[1735830159711,19.88270402,208.1,208.09,5.0]
[1735830159915,19.88270402,208.16,208.14,5.0]
[1735830160117,19.88270402,208.17,208.14,10.0]
[1735830160427,19.88270402,208.22,208.19,10.0]
[1735830160629,20.0,208.22,208.21,5.0]
[1735830160790,19.88270402,208.25,208.21,5.0]
[1735830160994,12.003,208.28,208.19,9.47402665]
[1735830160995,19.88270402,208.23,208.19,9.47402665]
[1735830161390,19.88270402,208.23,208.21,4.47402665]
[1735830161889,19.88270402,208.23,208.21,9.47402665]
[1735830162417,19.88270402,208.25,208.23,4.47402665]
[1735830162631,19.88270402,208.25,208.21,5.0]
[1735830162632,19.88270402,208.25,208.21,4.47402665]
[1735830162923,19.88270402,208.25,208.13,6.5049]
[1735830162924,19.88270402,208.23,208.19,4.47402665]
[1735830163130,19.88270402,208.21,208.19,4.47402665]
[1735830163285,20.0,208.27,208.17,4.47402665]
[1735830163286,19.88270402,208.2,208.17,4.47402665]
[1735830163642,19.88270402,208.2,208.18,5.0]
[1735830164132,19.88270402,208.22,208.19,4.47402665]
[1735830164286,20.0,208.2,208.19,4.47402665]
[1735830164491,20.0,208.2,208.14,5.0]
[1735830164492,20.0,208.17,208.14,5.0]
[1735830164709,19.88270402,208.15,208.12,9.47402665]
[1735830165416,19.88270402,208.17,208.14,9.47402665]
[1735830166105,19.88270402,208.17,208.14,5.0]
[1735830166305,19.88270402,208.15,208.14,5.0]
[1735830167331,44.03605802,208.15,208.07,5.0]
[1735830167538,6.3433,208.19,208.05,5.0]
[1735830167539,19.88270402,208.08,208.05,5.0]
[1735830167816,19.88270402,208.06,208.03,5.0]
[1735830167993,19.88270402,208.04,208.03,5.0]
[1735830170229,19.88270402,208.04,208.0,7.11662075]
[1735830170412,19.88270402,208.01,208.0,7.11662075]
[1735830172494,63.91876204,208.01,208.0,7.11662075]
[1735830172703,20.0,207.97,207.9,9.47402665]
[1735830172917,19.88270402,207.94,207.9,9.47402665]
[1735830173116,19.88270402,207.94,207.91,4.47402665]
[1735830173430,20.0,207.97,207.91,4.47402665]
[1735830173431,19.88270402,207.92,207.91,4.47402665]
[1735830174196,19.88270402,207.92,207.88,5.0]
[1735830174398,19.88270402,207.9,207.87,4.47402665]
[1735830174601,32.021,207.97,207.87,4.47402665]
[1735830174602,19.88270402,207.88,207.87,4.47402665]
[1735830174999,19.88270402,207.88,207.87,9.47402665]
[1735830175201,19.88270402,207.92,207.91,5.0]
[1735830175433,19.88270402,207.92,207.91,8.97402665]
[1735830175730,19.88270402,207.93,207.91,8.97402665]
[1735830176110,19.88270402,207.95,207.94,4.5]
[1735830176326,19.88270402,207.97,207.96,4.5]
[1735830177040,19.88270402,207.97,207.92,4.5]
[1735830177353,19.88270402,207.93,207.9,8.97402665]
[1735830177636,19.88270402,207.91,207.9,4.5]
[1735830177834,19.88270402,207.93,207.92,8.97402665]
[1735830179337,19.88270402,207.93,207.92,4.47402665]
[1735830179537,19.88270402,207.93,207.9,4.5]
[1735830179836,19.88270402,207.91,207.9,4.5]
[1735830180019,19.88270402,207.91,207.9,8.97402665]
[1735830180220,19.88270402,207.91,207.86,8.97402665]
[1735830180427,19.88270402,207.87,207.86,8.97402665]
[1735830181129,19.88270402,207.87,207.86,4.47402665]
[1735830181445,19.88270402,207.87,207.86,8.97402665]
[1735830182034,19.88270402,207.87,207.82,7.38366972]
[1735830182035,19.88270402,207.87,207.82,16.35769637]
[1735830182247,19.88270402,207.83,207.82,7.38366972]
[1735830182752,19.88270402,207.83,207.82,11.85769637]
[1735830182955,19.88270402,207.83,207.82,7.38366972]
[1735830183319,19.88270402,207.83,207.82,11.88366972]
[1735830183520,19.88270402,207.85,207.84,4.47402665]
[1735830183760,19.88270402,207.87,207.86,4.47402665]
[1735830183915,19.88270402,207.87,207.86,8.97402665]
[1735830184114,19.88270402,207.87,207.86,4.5]
[1735830184840,19.88270402,207.87,207.86,8.97402665]
[1735830185053,19.88270402,207.87,207.86,4.5]
[1735830185354,19.88270402,207.9,207.89,4.47402665]
[1735830185518,19.88270402,207.9,207.88,4.5]
[1735830185721,19.88270402,207.9,207.82,7.38366972]
[1735830185722,19.88270402,207.89,207.83,4.47402665]
[1735830185932,0.12549,207.89,207.83,4.47402665]
[1735830186260,19.88270402,207.84,207.83,8.97402665]
[1735830186948,19.88270402,207.84,207.83,4.47402665]
[1735830187414,19.88270402,207.84,207.82,11.85769637]
[1735830187612,19.88270402,207.83,207.82,11.85769637]
[1735830188440,19.88270402,207.83,207.82,7.38366972]
[1735830188642,19.88270402,207.83,207.82,11.85769637]
[1735830188830,19.88270402,207.83,207.82,11.88366972]
[1735830189515,19.88270402,207.84,207.83,4.47402665]
[1735830189824,19.88270402,207.88,207.87,4.47402665]
[1735830190008,19.88270402,207.91,207.89,4.47402665]
[1735830190208,26.44630402,208.0,207.93,8.97402665]
[1735830190445,19.88270402,208.0,207.93,8.97402665]
[1735830190619,12.0198,207.99,207.93,4.5]
[1735830190825,7.20980805,208.03,207.93,4.5]
[1735830191020,19.88270402,207.94,207.93,4.5]
[1735830191240,19.88270402,207.94,207.93,8.97402665]
[1735830193437,7.48597335,208.11,208.0,4.47402665]
[1735830193641,19.88270402,208.06,208.04,4.47402665]
[1735830193812,6.46,208.11,208.02,4.5]
[1735830193813,19.88270402,208.05,208.02,4.5]
[1735830194021,20.0,208.0,207.96,4.47402665]
[1735830194219,20.0,208.0,207.95,4.5]
[1735830194419,20.0,208.0,207.92,4.47402665]
[1735830194640,0.12549,208.01,207.94,4.47402665]
[1735830194839,24.027864,208.01,207.92,4.47402665]
[1735830195139,24.027864,208.01,207.94,4.47402665]
[1735830195140,20.0,207.98,207.94,4.47402665]
[1735830195330,20.0,207.98,207.95,4.5]
[1735830195331,19.88270402,207.96,207.95,4.5]
[1735830195529,19.88270402,207.97,207.96,4.47402665]
[1735830195727,19.88270402,207.97,207.95,4.5]
[1735830195932,20.0,207.98,207.95,4.5]
[1735830195933,19.88270402,207.98,207.96,4.47402665]
[1735830196422,39.88270402,208.01,207.98,8.97402665]
[1735830196622,20.0,208.01,208.0,4.47402665]
[1735830196823,19.88270402,208.04,208.02,4.47402665]
[1735830197025,19.88270402,208.05,208.04,4.5]
[1735830197241,19.88270402,208.06,208.02,8.97402665]
[1735830197426,19.88270402,208.06,208.04,8.97402665]
[1735830197620,19.88270402,208.05,208.01,8.97402665]
[1735830197829,19.88270402,208.04,208.01,8.97402665]
[1735830198146,19.88270402,208.04,207.9,24.88270402]
[1735830198147,19.88270402,208.03,207.99,8.97402665]
[1735830198316,19.88270402,208.03,208.02,4.5]
[1735830198524,19.88270402,208.07,208.05,8.97402665]
[1735830198949,19.88270402,208.06,208.05,8.97402665]
[1735830199152,19.88270402,208.09,208.07,4.47402665]
[1735830199364,18.3479,208.16,208.07,4.47402665]
[1735830199365,19.88270402,208.1,208.07,4.47402665]
[1735830199529,19.88270402,208.13,208.11,4.47402665]
[1735830199845,19.88270402,208.12,208.11,4.47402665]
[1735830200048,19.88270402,208.16,208.13,4.47402665]
[1735830200219,19.88270402,208.16,208.14,4.5]
[1735830200423,0.587,208.24,208.04,1.5176]
[1735830200424,19.88270402,208.17,208.12,4.5]
[1735830200726,19.88270402,208.15,208.12,4.5]
[1735830201067,19.88270402,208.15,208.13,4.47402665]
[1735830201358,19.88270402,208.15,208.13,13.28391099]
[1735830201650,20.0,208.11,208.05,4.47402665]
[1735830201853,19.88270402,208.06,208.05,4.47402665]
[1735830202037,19.88270402,208.06,208.05,17.47322153]
[1735830202356,19.88270402,208.08,208.07,8.97402665]
[1735830202533,19.88270402,208.09,208.07,8.97402665]
[1735830202962,19.88270402,208.12,208.1,4.47402665]
[1735830203131,19.88270402,208.13,208.1,4.5]
[1735830203327,19.88270402,208.11,208.1,4.5]
[1735830203861,19.88270402,208.12,208.1,4.5]
[1735830204054,19.88270402,208.11,208.1,4.5]
[1735830204736,19.88270402,208.11,208.09,4.47402665]
[1735830204938,19.88270402,208.1,208.09,17.1719402]
[1735830205557,20.0,208.08,208.07,4.47402665]
[1735830205849,20.0,208.07,208.05,4.47402665]
[1735830206053,20.0,208.07,208.03,8.97402665]
[1735830206527,20.0,208.07,208.05,4.47402665]
[1735830206851,19.88270402,208.06,208.05,8.97402665]
[1735830207151,19.88270402,208.07,208.05,22.12205673]
[1735830207351,0.12549,208.12,208.05,8.97402665]
[1735830207535,20.0,208.04,208.03,4.47402665]
[1735830207861,19.88270402,208.04,207.98,6.1509]
[1735830208155,20.0,208.07,207.97,4.47402665]
[1735830208156,19.88270402,207.99,207.97,4.47402665]
[1735830208329,19.88270402,207.98,207.97,4.47402665]
[1735830209243,19.88270402,208.01,208.0,8.97402665]
[1735830209953,20.0,207.98,207.97,4.5]
[1735830210329,19.88270402,208.01,207.99,8.97402665]
[1735830210531,19.88270402,208.0,207.99,8.97402665]
[1735830210738,19.88270402,208.01,207.99,8.97402665]
[1735830210937,19.88270402,208.01,207.99,21.85302544]
[1735830211153,19.88270402,208.04,208.03,4.47402665]
[1735830211970,19.88270402,208.04,207.93,11.1278]
[1735830211971,19.88270402,208.06,208.05,4.47402665]
[1735830212125,0.5,208.17,208.05,4.47402665]
[1735830212126,19.88270402,208.12,208.11,4.5]
[1735830212331,19.88270402,208.14,208.13,4.47402665]
[1735830212547,19.88270402,208.14,208.11,8.97402665]
[1735830212740,19.88270402,208.12,208.11,21.76645631]
[1735830212943,19.88270402,208.12,208.07,8.97402665]
[1735830213145,24.027864,208.16,208.09,4.47402665]
[1735830213453,20.0,208.13,208.09,4.5]
[1735830213626,0.12549,208.12,208.06,4.5]
[1735830213831,0.25098,208.14,208.06,17.33129223]
[1735830214128,0.12549,208.12,208.06,17.33129223]
[1735830214329,0.12549,208.12,208.04,4.5]
[1735830214330,19.88270402,208.07,208.04,4.5]
[1735830214558,20.0,208.02,208.0,4.5]
[1735830214738,19.88270402,208.01,208.0,17.29180273]
[1735830214940,19.88270402,208.01,207.98,6.0303]
[1735830215153,20.0,207.98,207.96,8.97402665]
[1735830215452,39.88270402,207.98,207.97,4.5]
[1735830216556,39.88270402,207.98,207.95,4.5]
[1735830216765,20.0,207.98,207.97,4.5]
[1735830217842,20.0,207.98,207.96,4.47402665]
[1735830218046,20.0,207.98,207.97,4.5]
[1735830218269,39.88270402,207.98,207.97,4.5]
[1735830218758,39.88270402,207.98,207.96,4.47402665]
[1735830218961,39.88270402,207.98,207.94,4.47402665]
[1735830218962,51.90310402,207.98,207.94,4.47402665]
[1735830219164,19.88270402,207.96,207.93,4.5]
[1735830219334,19.88270402,207.96,207.89,6.1472]
[1735830219335,20.0,207.92,207.91,4.5]
[1735830219532,19.88270402,207.92,207.89,4.5]
[1735830219730,19.88270402,207.9,207.89,12.74214127]
[1735830219962,19.88270402,207.9,207.89,4.5]
[1735830220153,19.88270402,207.9,207.88,4.47402665]
[1735830220332,19.88270402,207.9,207.89,4.5]
[1735830220533,20.0,207.95,207.9,4.47402665]
[1735830220534,19.88270402,207.91,207.9,4.47402665]
[1735830220747,19.88270402,207.91,207.89,4.5]
[1735830220944,19.88270402,207.9,207.89,4.5]
[1735830221141,19.88270402,207.92,207.91,8.97402665]
[1735830221338,19.88270402,207.94,207.93,8.97402665]
[1735830221544,20.0,207.94,207.93,8.97402665]
[1735830222145,20.0,207.94,207.93,4.5]
[1735830222347,20.0,207.94,207.93,8.97402665]
[1735830222733,51.90540402,207.94,207.91,8.97402665]
[1735830222968,19.88270402,207.93,207.91,8.97402665]
[1735830224039,51.90540402,207.94,207.91,8.97402665]
[1735830224240,19.88270402,207.92,207.91,4.5]
[1735830224537,19.88270402,207.92,207.87,8.97402665]
[1735830224757,19.88270402,207.88,207.87,21.79395863]
[1735830224959,19.88270402,207.9,207.87,21.79395863]
[1735830225151,12.0244,207.91,207.89,4.5]
[1735830225352,12.0244,207.91,207.87,8.97402665]
[1735830225565,19.88270402,207.88,207.87,8.97402665]
[1735830225768,19.88270402,207.88,207.87,22.31593552]
[1735830225965,19.88270402,207.88,207.87,17.84190887]
[1735830226179,19.88270402,207.88,207.85,4.47402665]
[1735830226180,19.88270402,207.88,207.85,4.5]
[1735830226379,19.88270402,207.86,207.85,4.5]
[1735830226754,19.88270402,207.9,207.87,8.97402665]
[1735830226956,19.88270402,207.9,207.89,8.97402665]
[1735830227554,19.88270402,207.91,207.89,8.97402665]
[1735830227760,19.88270402,207.9,207.89,8.97402665]
[1735830229466,20.0,207.88,207.87,4.5]
[1735830229670,39.88270402,207.88,207.87,8.97402665]
[1735830229870,39.88270402,207.88,207.87,4.5]
[1735830230254,39.88270402,207.88,207.85,4.5]
[1735830230455,19.88270402,207.86,207.85,17.62014579]
[1735830231079,19.88270402,207.86,207.85,22.09417244]
[1735830231475,19.88270402,207.87,207.85,22.09417244]
[1735830231854,19.88270402,207.88,207.87,4.47402665]
[1735830232179,39.88270402,207.88,207.87,8.97402665]
[1735830232768,20.0,207.88,207.87,8.97402665]
[1735830232959,39.88270402,207.88,207.87,8.97402665]
[1735830233761,19.88270402,207.9,207.89,4.5]
[1735830234057,19.88270402,207.9,207.87,4.5]
[1735830234254,39.88270402,207.88,207.87,4.5]
[1735830236301,39.88270402,207.88,207.87,8.97402665]
[1735830236856,20.0,207.88,207.87,8.97402665]
[1735830237285,39.88270402,207.88,207.87,8.97402665]
[1735830237491,39.88270402,207.88,207.87,4.5]
[1735830237693,39.88270402,207.88,207.87,8.97402665]
[1735830238301,39.88270402,207.88,207.87,4.5]
[1735830238591,39.88270402,207.88,207.87,8.97402665]
[1735830238979,39.88270402,207.88,207.87,4.5]
[1735830239563,51.90940402,207.88,207.85,8.97402665]
[1735830239806,19.88270402,207.86,207.83,8.97402665]
[1735830240001,19.88270402,207.84,207.83,8.97402665]
[1735830240293,32.0267,207.88,207.85,4.5]
[1735830240294,51.90940402,207.88,207.85,4.5]
[1735830240506,32.0267,207.88,207.87,4.5]
[1735830240794,32.0267,207.88,207.82,7.38366972]
[1735830240795,51.90940402,207.88,207.85,4.5]
[1735830241095,19.88270402,207.86,207.85,4.5]
[1735830242202,19.88270402,207.9,207.88,4.47402665]
[1735830242399,19.88270402,207.94,207.93,4.5]
[1735830242709,19.88270402,207.94,207.89,4.5]
[1735830242897,19.88270402,207.9,207.87,4.5]
[1735830243066,19.88270402,207.88,207.87,4.5]
[1735830243266,19.88270402,207.92,207.91,4.5]
[1735830243466,19.88270402,207.92,207.88,4.5]
[1735830243770,19.88270402,207.9,207.86,8.97402665]
[1735830243966,44.153354,207.95,207.88,4.5]
[1735830244162,20.0,207.86,207.85,4.5]
[1735830244368,20.0,207.86,207.82,16.35769637]
[1735830244589,20.0,207.86,207.85,4.5]
[1735830244777,19.88270402,207.86,207.85,4.5]
[1735830245291,19.88270402,207.9,207.89,8.97402665]
[1735830245490,19.88270402,207.9,207.85,13.07029071]
[1735830245491,19.88270402,207.92,207.91,8.97402665]
[1735830245809,19.88270402,207.94,207.93,8.97402665]
[1735830246121,19.88270402,208.0,207.97,8.97402665]
[1735830246323,19.88270402,208.0,207.92,19.88270402]
[1735830246324,19.88270402,208.0,207.99,8.97402665]
[1735830246506,19.88270402,208.02,208.01,4.5]
[1735830246970,20.0,208.0,207.99,4.5]
[1735830247164,20.0,208.0,207.97,8.97402665]
[1735830247165,39.88270402,208.0,207.97,8.97402665]
[1735830247394,19.88270402,207.98,207.97,4.47402665]
[1735830248582,12.0195,208.0,207.99,4.5]
[1735830248583,19.88270402,208.0,207.99,4.5]
[1735830248783,19.88270402,208.0,207.99,4.47402665]
[1735830249095,19.88270402,208.0,207.99,8.97402665]
[1735830249496,19.88270402,208.0,207.97,8.97402665]
[1735830249799,19.88270402,207.98,207.97,8.97402665]
[1735830249985,19.88270402,208.0,207.99,8.97402665]
[1735830250782,19.88270402,208.02,208.01,4.47402665]
[1735830250983,19.88270402,208.04,208.03,4.47402665]
[1735830251287,19.88270402,208.06,208.05,8.97402665]
[1735830251678,12.0128,208.11,208.01,6.0248]
[1735830251679,19.88270402,208.08,208.07,8.97402665]
[1735830252003,19.88270402,208.08,208.01,6.0248]
[1735830252004,19.88270402,208.1,208.09,8.97402665]
[1735830252203,20.0,208.08,208.07,8.97402665]
[1735830252384,39.88270402,208.08,208.07,4.47402665]
[1735830252897,39.88270402,208.08,208.05,8.97402665]
[1735830253100,19.88270402,208.06,208.05,1.73632665]
[1735830253429,19.88270402,208.06,208.03,1.73632665]
[1735830253430,20.0,208.04,208.03,1.73632665]
[1735830253604,39.88270402,208.04,208.03,1.73632665]
[1735830254209,24.153354,208.03,207.98,4.5]
[1735830254395,24.153354,208.03,207.95,0.9048]
[1735830254396,0.12549,207.98,207.95,0.9048]
[1735830254584,19.88270402,207.96,207.95,0.9048]
[1735830254902,19.88270402,207.96,207.93,0.9048]
[1735830255104,19.88270402,207.96,207.95,0.9048]
[1735830255277,19.88270402,207.96,207.93,0.9048]
[1735830255484,19.88270402,207.94,207.91,0.9048]
[1735830255698,19.88270402,207.92,207.91,0.9048]
[1735830256304,20.0,207.93,207.91,0.9048]
[1735830256505,20.0,207.93,207.91,13.70552257]
[1735830256699,39.88270402,207.93,207.91,13.70552257]
[1735830257495,51.90610402,207.93,207.91,13.70552257]
[1735830257817,51.90610402,207.93,207.89,0.9048]
[1735830258022,19.88270402,207.9,207.89,0.9048]
[1735830258198,19.88270402,207.9,207.85,6.6535]
[1735830258199,20.0,207.87,207.85,0.9048]
[1735830258390,19.88270402,207.86,207.85,13.49227501]
[1735830258907,19.88270402,207.86,207.85,12.58747501]
[1735830259213,31.91000402,207.86,207.83,0.9048]
[1735830259420,19.88270402,207.84,207.83,13.95887304]
[1735830259791,31.91000402,207.86,207.85,0.9048]
[1735830260019,31.91000402,207.86,207.84,13.05407304]
[1735830260882,31.91000402,207.86,207.85,0.9048]
[1735830261084,31.91000402,207.86,207.85,13.38936064]
[1735830261510,31.90810402,207.9,207.87,0.9048]
[1735830261787,31.90810402,207.9,207.89,0.9048]
[1735830263512,20.0,207.88,207.87,0.9048]
[1735830263702,20.0,207.87,207.85,0.9048]
[1735830263893,19.88270402,207.86,207.85,0.9048]
[1735830264396,19.88270402,207.86,207.83,0.9048]
[1735830264703,19.88270402,207.84,207.83,13.42148506]
[1735830265419,19.88270402,207.84,207.83,0.9048]
[1735830265624,31.91110402,207.84,207.81,0.9048]
[1735830266027,23.902374,207.83,207.7,5.0]
[1735830266205,12.0284,207.84,207.74,19.88270402]
[1735830266389,12.0284,207.84,207.71,5.0]
[1735830266809,12.0284,207.84,207.74,19.88270402]
[1735830267622,20.0,207.83,207.74,19.88270402]
[1735830267804,20.0,207.83,207.71,5.0]
[1735830267805,39.88270402,207.83,207.75,19.88270402]
[1735830268322,39.88270402,207.83,207.73,19.88270402]
[1735830268690,51.91170402,207.83,207.73,19.88270402]
[1735830269623,19.88270402,207.86,207.82,8.97126972]
[1735830269807,19.88270402,207.88,207.82,8.97126972]
[1735830270202,24.0462,207.94,207.82,22.08906982]
[1735830270203,19.88270402,207.86,207.82,22.08906982]
[1735830270411,19.88270402,207.83,207.82,22.08906982]
[1735830270814,19.88270402,207.85,207.82,22.08906982]
[1735830271498,12.0278,207.86,207.82,22.21613558]
[1735830272127,19.88270402,207.85,207.82,22.21613558]
[1735830272504,19.88270402,207.89,207.82,8.97126972]
[1735830272832,25.46967737,208.0,207.83,19.88270402]
[1735830272833,19.88270402,207.91,207.83,19.88270402]
[1735830273037,12.0213,207.97,207.87,19.88270402]
[1735830273211,19.88270402,207.96,207.89,19.88270402]
[1735830273435,12.0213,207.97,207.89,19.88270402]
[1735830273615,19.88270402,207.98,207.91,19.88270402]
[1735830274734,19.88270402,208.0,207.91,32.77380315]
[1735830274923,19.88270402,208.02,207.93,19.88270402]
[1735830275133,19.88270402,208.02,207.95,19.88270402]
[1735830275319,19.88270402,208.04,207.97,19.88270402]
[1735830275504,19.88270402,208.06,207.97,32.77380315]
[1735830275837,19.88270402,208.06,207.99,19.88270402]
[1735830275997,19.88270402,208.09,208.02,19.88270402]
[1735830276194,19.88270402,208.09,208.02,32.98686409]
[1735830276401,19.88270402,208.08,208.02,13.10416007]
[1735830276718,19.88270402,208.08,208.02,12.57270852]
[1735830277324,19.88270402,208.08,208.01,12.57270852]
[1735830277527,19.88270402,208.06,208.01,12.57270852]
[1735830277929,19.88270402,208.08,208.01,12.57270852]
[1735830279904,19.88270402,208.06,208.01,12.57270852]
[1735830280404,19.88270402,208.07,208.01,12.57270852]
[1735830281325,19.88270402,208.09,208.01,19.88270402]
[1735830281532,19.88270402,208.09,208.01,32.35300848]
[1735830282430,19.88270402,208.05,208.0,6.2937]
[1735830283112,19.88270402,208.05,208.0,18.73599504]
[1735830284731,19.88270402,208.02,208.0,18.73599504]
[1735830285236,19.88270402,208.01,208.0,13.14440378]
[1735830285433,19.88270402,208.01,207.98,1.6172]
[1735830285638,19.88270402,207.99,207.98,1.6172]
[1735830285816,19.88270402,208.01,207.98,1.6172]
[1735830286143,19.88270402,208.04,207.98,1.6172]
[1735830286336,19.88270402,208.04,207.98,14.13953606]
[1735830287409,19.88270402,208.02,207.98,14.13953606]
[1735830287633,19.88270402,208.01,207.98,1.6172]
[1735830288257,19.88270402,207.99,207.96,13.086921]
[1735830288411,0.25098,208.05,207.93,1.5035]
[1735830288412,39.88270402,207.97,207.93,1.5035]
[1735830288609,19.88270402,207.94,207.9,6.0287]
[1735830288813,19.88270402,207.92,207.9,6.0287]
[1735830289013,19.88270402,207.92,207.87,1.6475]
[1735830289741,19.88270402,207.88,207.87,12.91253175]
[1735830290337,19.88270402,207.88,207.82,7.38366972]
[1735830290517,19.88270402,207.85,207.82,7.38366972]
[1735830290959,19.88270402,207.85,207.82,20.28410689]
[1735830291437,19.88270402,207.85,207.82,7.38366972]
[1735830291853,19.88270402,207.85,207.82,20.13394462]
[1735830292348,19.88270402,207.89,207.82,40.01664864]
[1735830295221,19.88270402,207.93,207.84,19.88270402]
[1735830295425,19.88270402,207.93,207.86,19.88270402]
[1735830295729,19.88270402,207.93,207.86,32.43472148]
[1735830297355,12.0209,207.97,207.86,32.43472148]
[1735830297356,19.88270402,207.97,207.88,19.88270402]
[1735830297521,19.88270402,207.97,207.88,32.87508767]
[1735830298143,19.88270402,208.01,207.94,19.88270402]
[1735830298328,19.88270402,208.01,207.92,19.88270402]
[1735830298513,19.88270402,207.99,207.92,19.88270402]
[1735830298718,19.88270402,208.01,207.94,19.88270402]
[1735830298938,19.88270402,208.01,207.94,32.96115919]
[1735830300345,19.88270402,208.03,207.96,19.88270402]
[1735830300527,31.89950402,208.05,207.96,33.03166565]
[1735830300731,31.89950402,208.05,207.97,6.2798]
[1735830300927,31.89950402,208.05,207.97,19.09657518]
[1735830301132,1.93066267,208.11,207.97,19.09657518]
[1735830301133,31.89720402,208.09,208.0,19.88270402]
[1735830301423,19.88270402,208.09,208.02,19.88270402]
[1735830301628,19.88270402,208.09,208.02,32.6994792]
[1735830302036,19.88270402,208.09,208.03,0.12549]
[1735830302246,19.88270402,208.13,208.04,19.88270402]
[1735830302547,31.89250402,208.17,208.08,19.88270402]
[1735830302742,31.89250402,208.17,208.08,32.40447502]
[1735830303225,19.88270402,208.15,208.08,12.521771]
[1735830303418,12.0098,208.17,208.08,12.521771]
[1735830303419,19.88270402,208.11,208.08,12.521771]
[1735830303617,19.88270402,208.09,208.08,12.521771]
[1735830305525,19.88270402,208.09,208.05,1.5408]
[1735830305744,19.88270402,208.06,208.0,1.6059]
[1735830306050,19.88270402,208.02,208.0,14.05841119]
[1735830306351,19.88270402,208.04,208.0,1.6059]
[1735830306655,19.88270402,208.02,208.0,1.6059]
[1735830307025,19.88270402,208.04,208.0,1.6059]
[1735830307222,19.88270402,208.02,208.0,1.6059]
[1735830307723,19.88270402,208.06,208.0,1.6059]
[1735830308224,19.88270402,208.06,208.0,14.71407099]
[1735830308835,19.88270402,208.06,208.0,14.24860979]
[1735830309546,19.88270402,208.12,208.03,19.88270402]